fUST/lending_fUST_20260107
["ID","MTS","AMOUNT","RATE_DAILY","PERIOD"]
[400649072,1767765053153,-376.8907927,0.00035452,30]
[400649073,1767765053163,-376.8907927,0.00035452,30]
[400649074,1767765053173,-376.8907927,0.00035452,30]
[400649075,1767765053183,-753.7815854,0.00035452,30]
[400649076,1767765053193,-250.06,0.00035543,60]
[400649077,1767765053203,-2000.0,0.00035594,7]
[400649078,1767765053213,-2362.90658169,0.00035607,2]
[400649079,1767765053222,-157.563377,0.00035616,31]
[400649080,1767765053232,-151.0,0.00035616,31]
[400649081,1767765053242,-151.0,0.00035616,31]
[400649082,1767765053251,-151.0,0.00035616,31]
[400649083,1767765053262,-194.927323,0.00035616,31]
[400649084,1767765053272,-194.927323,0.00035616,31]
[400649085,1767765053282,-194.927323,0.00035616,31]
[400649086,1767765053292,-194.927323,0.00035616,31]
[400649087,1767765053302,-833.29,0.00035616,4]
[400649088,1767765053312,-833.29,0.00035616,4]
[400649089,1767765053322,-833.29,0.00035616,4]
[400649090,1767765053331,-833.29,0.00035616,4]
[400649091,1767765053341,-833.29,0.00035616,4]
[400649092,1767765053351,-833.29,0.00035616,4]
[400649093,1767765053360,-833.29,0.00035616,4]
[400649094,1767765053370,-833.29,0.00035616,4]
[400649095,1767765053380,-833.29,0.00035616,4]
[400649096,1767765053390,-833.29,0.00035616,4]
[400649097,1767765053399,-833.29,0.00035616,4]
[400649098,1767765053408,-833.29,0.00035616,4]
[400649099,1767765053418,-833.29,0.00035616,4]
[400649100,1767765053429,-833.29,0.00035616,4]
[400649101,1767765053438,-833.29,0.00035616,4]
[400649102,1767765053448,-833.29,0.00035616,4]
[400649103,1767765053457,-833.29,0.00035616,4]
[400649104,1767765053467,-833.29,0.00035616,4]
[400649105,1767765053476,-833.29,0.00035616,4]
[400649106,1767765053486,-833.29,0.00035616,4]
[400649107,1767765053496,-833.29,0.00035616,4]
[400649108,1767765053507,-833.29,0.00035616,4]
[400649109,1767765053518,-833.29,0.00035616,4]
[400649110,1767765053528,-833.33,0.00035616,4]
[400649111,1767765053538,-1346.23,0.00035616,120]
[400649112,1767765053548,-187.815389,0.00035616,31]
[400649113,1767765053558,-187.815389,0.00035616,31]
[400649114,1767765053568,-187.815389,0.00035616,31]
[400649115,1767765053577,-187.815381,0.00035616,31]
[400649116,1767765053587,-673.621691,0.00035616,31]
[400649117,1767765053597,-673.621691,0.00035616,31]
[400649118,1767765053606,-673.621691,0.00035616,31]
[400649119,1767765053616,-673.621686,0.00035616,31]
[400649120,1767765053625,-151.0,0.00035616,31]
[400649121,1767765053635,-1664.343388,0.00035616,31]
[400649122,1767765053645,-1664.343388,0.00035616,31]
[400649123,1767765053654,-1664.343388,0.00035616,31]
[400649124,1767765053664,-1664.343396,0.00035616,31]
[400649125,1767765053674,-215.570059,0.00035616,8]
[400649126,1767765053683,-206.665209,0.00035616,31]
[400649127,1767765053693,-215.570059,0.00035616,8]
[400649128,1767765053703,-206.665209,0.00035616,31]
[400649129,1767765053713,-215.570059,0.00035616,8]
[400649130,1767765053723,-206.665209,0.00035616,31]
[400649131,1767765053732,-215.570056,0.00035616,8]
[400649132,1767765053742,-206.665216,0.00035616,31]
[400649133,1767765053752,-151.0,0.00035616,31]
[400649134,1767765053762,-151.0,0.00035616,31]
[400649135,1767765053775,-151.0,0.00035616,31]
[400649136,1767765053785,-274.97237,0.00035616,31]
[400649137,1767765053794,-274.97237,0.00035616,31]
[400649138,1767765053805,-274.97237,0.00035616,31]
[400649139,1767765053814,-151.0,0.00035616,31]
[400649140,1767765053824,-152.958183,0.00035616,31]
[400649141,1767765053834,-174.96595306,0.00035616,2]
[400649142,1767765053843,-151.0,0.00035616,31]
[400649143,1767765053853,-151.0,0.00035616,31]
[400649144,1767765053862,-250.06,0.00035643,60]
[400649145,1767765053871,-151.0,0.00035698,31]
[400649146,1767765053881,-151.0,0.00035698,31]
[400649147,1767765053890,-329.060096,0.00035726,30]
[400649148,1767765053900,-304.1183111,0.00035726,30]
[400649149,1767765053910,-304.1183111,0.00035726,30]
[400649150,1767765053920,-304.1183111,0.00035726,30]
[400649151,1767765053929,-304.1183111,0.00035726,30]
[400649152,1767765053939,-304.1183111,0.00035726,30]
[400649153,1767765053949,-304.1183111,0.00035726,30]
[400649154,1767765053958,-184.409231,0.00035726,30]
[400649155,1767765053967,-250.06,0.00035743,60]
[400649156,1767765053976,-8045.68317556,0.00035747,2]
[400649157,1767765053986,-392.0433415,0.00035836,30]
[400649158,1767765053995,-250.06,0.00035843,60]
[400649159,1767765054004,-346.1,0.0003586,30]
[400649160,1767765054014,-316.0,0.00035884,30]
[400649161,1767765054024,-402.32,0.0003589,39]
[400649162,1767765054033,-214.456704,0.00035926,31]
[400649163,1767765054042,-214.456704,0.00035926,31]
[400649164,1767765054052,-214.456704,0.00035926,31]
[400649165,1767765054061,-214.456704,0.00035926,31]
[400649166,1767765054071,-151.0,0.00035926,31]
[400649167,1767765054081,-151.0,0.00035926,31]
[400649168,1767765054090,-250.06,0.00035943,60]
[400649169,1767765054100,-600.0,0.00035959,2]
[400649170,1767765054110,-4836.07782732,0.00035987,38]
[400649171,1767765054121,-250.06,0.00036043,60]
[400649172,1767765054131,-3609.471362,0.00036072,2]
[400649173,1767765054142,-260.26971429,0.00036097,2]
[400649174,1767765054152,-2145.0,0.00036104,2]
[400649175,1767765054161,-628.0,0.00036104,2]
[400649176,1767765054171,-1365.0,0.00036104,2]
[400649177,1767765054180,-250.06,0.00036143,60]
[400649178,1767765054190,-727.0,0.00036155,11]
[400649179,1767765054199,-1000.0,0.00036161,14]
[400649180,1767765054208,-5000.0,0.00036163,3]
[400649181,1767765054217,-151.0,0.00036164,31]
[400649182,1767765054227,-151.0,0.00036164,7]
[400649183,1767765054236,-151.0,0.00036164,31]
[400649184,1767765054245,-151.0,0.00036164,31]
[400649185,1767765054255,-609.666208,0.00036164,31]
[400649186,1767765054264,-609.666208,0.00036164,31]
[400649187,1767765054274,-609.666208,0.00036164,31]
[400649188,1767765054283,-609.666208,0.00036164,31]
[400649189,1767765054293,-390.0,0.00036164,5]
[400649190,1767765054303,-300000.0,0.00036171,10]
[400649191,1767765054313,-200.0,0.00036171,31]
[400649192,1767765054322,-200.0,0.00036171,31]
[400649193,1767765054331,-200.0,0.00036171,31]
[400649194,1767765054341,-200.0,0.00036171,31]
[400649195,1767765054351,-151.0,0.00036171,31]
[400649196,1767765054360,-151.0,0.00036171,31]
[400649197,1767765054370,-151.0,0.00036171,31]
[400649198,1767765054379,-151.0,0.00036171,31]
[400649199,1767765054388,-151.0,0.00036171,31]
[400649200,1767765054397,-151.0,0.00036171,31]
[400649201,1767765054407,-151.0,0.00036171,31]
[400649202,1767765054416,-151.0,0.00036171,31]
[400649203,1767765054425,-151.0,0.00036171,31]
[400649204,1767765054435,-151.0,0.00036171,31]
[400649205,1767765054538,-151.0,0.00036171,31]
[400649206,1767765054547,-151.0,0.00036171,31]
[400649207,1767765054558,-151.0,0.00036171,31]
[400649208,1767765054567,-151.0,0.00036171,31]
[400649209,1767765054576,-175.703798,0.00036171,31]
[400649210,1767765054587,-151.0,0.00036171,31]
[400649211,1767765054597,-1626.684503,0.00036171,31]
[400649212,1767765054607,-1626.684503,0.00036171,31]
[400649213,1767765054615,-1626.684503,0.00036171,31]
[400649214,1767765054624,-1626.684503,0.00036171,31]
[400649215,1767765054634,-9401.4842085,0.00036179,2]
[400649216,1767765054643,-260.26971429,0.00036197,2]
[400649217,1767765054652,-340.63,0.000362,2]
[400649218,1767765054664,-250.11199997,0.00036243,60]
[400649219,1767765054673,-260.26971429,0.00036297,2]
[400649220,1767765054682,-2000.0,0.00036328,7]
[400649221,1767765054692,-600.0,0.00036333,2]
[400649222,1767765054704,-588.31683182,0.00036355,7]
[400649223,1767765054714,-191.538092,0.00036384,30]
[400649224,1767765054723,-316.0,0.0003639,30]
[400649225,1767765054733,-260.26971429,0.00036397,2]
[400649226,1767765054742,-22473.54869382,0.000364,2]
[400649227,1767765054751,-727.0,0.00036418,11]
[400649228,1767765054768,-402.32,0.00036438,40]
[400649229,1767765054780,-260.26971429,0.00036497,2]
[400649230,1767765054791,-160.0,0.00036521,89]
[400649231,1767765054801,-727.0,0.00036546,11]
[400649232,1767765054811,-85036.34501675,0.00036587,5]
[400649233,1767765054946,-905.78757059,0.00036587,5]
[400649234,1767765054962,-274.97237,0.00024142,2]
[400649235,1767765054971,-865.64963724,0.00036587,5]
[400649236,1767765054982,-1177.4037966,0.00036587,5]
[400649237,1767765054993,-68158.45397882,0.00036587,5]
[400649238,1767765055002,-260.26971429,0.00036597,2]
[400649239,1767765055012,-273770.09299193,0.0003663,4]
[400649240,1767765055023,-30764.46480699,0.0003663,4]
[400649241,1767765055290,-3e-08,0.00013169,2]
[400649242,1767765055303,-499.99999997,0.00013169,2]
[400649243,1767765055312,-151.000036,0.00024142,2]
[400649244,1767765055322,-164.731913,0.00024142,2]
[400649245,1767765055333,-274.97237,0.000249,7]
[400649246,1767765055343,-274.97237,0.00026785,7]
[400649247,1767765055352,-274.97237,0.00029,7]
[400649248,1767765055362,-274.972369,0.00035616,31]
[400649249,1767765055371,-39711.6096101,0.0003663,4]
[400649250,1767765055523,-1956.83,0.00032877,10]
[400649253,1767765125867,164.89,8.729e-05,2]
[400649254,1767765126642,206.12,9.353e-05,2]
[400649255,1767765127241,247.34,9.976e-05,2]
[400649256,1767765127661,288.57,0.000106,2]
[400649257,1767765128087,329.79,0.00011223,2]
[400649258,1767765128492,371.01,0.00011847,2]
[400649259,1767765128928,412.24,0.0001247,2]
[400649260,1767765197479,179.0,9.486e-05,2]
[400649261,1767765197879,214.8,0.00010118,2]
[400649262,1767765198285,250.6,0.0001075,2]
[400649263,1767765198705,286.4,0.00011383,2]
[400649264,1767765199117,322.2,0.00012015,2]
[400649266,1767765267317,174.08,8.859e-05,2]
[400649267,1767765267720,217.6,9.492e-05,2]
[400649268,1767765268158,261.12,0.00010125,2]
[400649269,1767765268593,304.64,0.00010758,2]
[400649270,1767765269016,348.16,0.00011391,2]
[400649271,1767765269496,391.67,0.00012023,2]
[400649272,1767765272761,352.52620905,0.00012357,2]
[400649275,1767765338028,195.86,8.886e-05,2]
[400649276,1767765338452,244.82,9.521e-05,2]
[400649277,1767765338860,293.79,0.00010156,2]
[400649278,1767765339297,342.75,0.00010791,2]
[400649279,1767765339731,391.72,0.00011425,2]
[400649280,1767765340155,440.68,0.0001206,2]
[400649281,1767765409826,182.71,8.154e-05,2]
[400649282,1767765410242,243.61,8.781e-05,2]
[400649283,1767765410693,304.51,9.408e-05,2]
[400649284,1767765411592,365.42,0.00010035,2]
[400649285,1767765412004,426.32,0.00010662,2]
[400649286,1767765412951,487.22,0.0001129,2]
[400649287,1767765413574,548.12,0.00011917,2]
[400649288,1767765413958,609.03,0.00012544,2]
[400649292,1767765485003,180.29,8.051e-05,2]
[400649293,1767765485510,240.38,8.67e-05,2]
[400649294,1767765485919,300.48,9.289e-05,2]
[400649295,1767765486337,360.58,9.909e-05,2]
[400649296,1767765486744,420.67,0.00010528,2]
[400649297,1767765487147,480.77,0.00011147,2]
[400649298,1767765487595,540.87,0.00011767,2]
[400649299,1767765488059,600.96,0.00012386,2]
[400649300,1767765559538,162.9,0.00010648,2]
[400649301,1767765559948,203.62,0.00011408,2]
[400649302,1767765560360,244.35,0.00012169,2]
[400649303,1767765562730,1187.58,0.000126,2]
[400649304,1767765562754,3812.42,0.000126,2]
[400649306,1767765631654,164.75,0.00010136,2]
[400649307,1767765631958,200.0,0.0003,120]
[400649308,1767765632098,197.7,0.00010812,2]
[400649309,1767765632575,230.65,0.00011488,2]
[400649310,1767765633074,263.6,0.00012164,2]
[400649311,1767765694087,300.0,0.0003,120]
[400649312,1767765702901,177.8,0.00010877,2]
[400649313,1767765703334,207.43,0.00011557,2]
[400649314,1767765703762,237.06,0.00012237,2]
[400649315,1767765712701,-660.02849954,0.00012787,2]
[400649316,1767765716188,-275.73,0.00012787,2]
[400649317,1767765719491,-357.02846024,0.00012787,2]
[400649318,1767765773770,151.99,0.00011941,2]
[400649319,1767765844162,158.23,0.00011544,2]
[400649320,1767765844583,178.0,0.00012185,2]
[400649321,1767765922662,-227.92739227,0.00012659,2]
[400649322,1767765925367,-281.12842569,0.00012659,2]
[400649323,1767765927544,-172.02805785,0.00012659,2]
[400649324,1767765929822,-179.00505608,0.00012659,2]
[400649326,1767766080144,258.46,8.864e-05,2]
[400649327,1767766100974,5000.0,0.00012614,2]
[400649328,1767766123211,4647.47101321,0.00012614,2]
[400649329,1767766153908,94.07898679,0.00012614,2]
[400649330,1767766153931,4905.92101321,0.00012614,2]
[400649331,1767766198963,5000.0,0.00012614,2]
[400649355,1767766232262,-217.14289508,0.00012749,2]
[400649356,1767766232272,-605.70801647,0.0001289,2]
[400649357,1767766232320,-534.54761844,0.0001289,2]
[400649371,1767766238332,-1144.55701273,0.00012761,2]
[400649372,1767766238442,-3855.44298727,0.00012761,2]
[400649373,1767766238453,-59.74436509,0.0001289,2]
[400649374,1767766238463,-300.0,0.00012891,2]
[400649375,1767766238473,-300.0,0.00012891,2]
[400649376,1767766238482,-285.0,0.00012891,2]
[400649377,1767766238491,-206.58822789,0.00012892,2]
[400649379,1767766238500,-205.11506446,0.00012892,2]
[400649380,1767766238509,-500.0,0.00012892,2]
[400649381,1767766238518,-206.93396623,0.00012892,2]
[400649382,1767766238527,-828.0,0.00012892,2]
[400649383,1767766238537,-487.00892918,0.00012996,2]
[400649384,1767766238546,-500.0,0.00012996,2]
[400649385,1767766238555,-500.0,0.00012996,2]
[400649386,1767766238565,-500.0,0.00012996,2]
[400649387,1767766238574,-500.0,0.00012996,2]
[400649388,1767766238583,-500.0,0.00012996,2]
[400649389,1767766238593,-500.0,0.00012996,2]
[400649390,1767766238602,-500.0,0.00012996,2]
[400649391,1767766238611,-500.0,0.00012996,2]
[400649392,1767766238620,-500.0,0.00012996,2]
[400649393,1767766238629,-513.43462486,0.00012996,2]
[400649394,1767766238639,-500.0,0.00012996,2]
[400649395,1767766238648,-500.0,0.00012996,2]
[400649396,1767766238657,-500.0,0.00012996,2]
[400649397,1767766238667,-500.0,0.00012996,2]
[400649398,1767766238676,-500.0,0.00012996,2]
[400649399,1767766238685,-500.0,0.00012996,2]
[400649400,1767766238695,-500.0,0.00012996,2]
[400649401,1767766238704,-50000.0,0.00012997,2]
[400649402,1767766238713,-1000000.0,0.00012999,2]
[400649403,1767766238722,-571.60339535,0.00013029,2]
[400649404,1767766238732,-156.51468923,0.00013029,2]
[400649405,1767766238741,-154.44367784,0.00013029,2]
[400649406,1767766238750,-156.59896823,0.00013029,2]
[400649407,1767766238759,-828.0,0.00013029,2]
[400649408,1767766238768,-152.02997996,0.00013098,2]
[400649409,1767766238778,-10000.0,0.000131,2]
[400649410,1767766238787,-500.0,0.00013149,2]
[400649411,1767766238796,-500.0,0.00013149,2]
[400649412,1767766238806,-500.0,0.00013149,2]
[400649413,1767766238815,-206.34456629,0.00013149,2]
[400649414,1767766238825,-500.0,0.00013149,2]
[400649415,1767766238835,-500.0,0.00013149,2]
[400649416,1767766238844,-500.0,0.00013149,2]
[400649417,1767766238855,-500.0,0.00013149,2]
[400649418,1767766238864,-500.0,0.00013149,2]
[400649419,1767766238874,-500.0,0.00013149,2]
[400649420,1767766238884,-500.0,0.00013149,2]
[400649421,1767766238896,-500.0,0.00013149,2]
[400649422,1767766238906,-500.0,0.00013149,2]
[400649423,1767766238916,-500.0,0.00013149,2]
[400649424,1767766238926,-500.0,0.00013149,2]
[400649425,1767766238936,-500.0,0.00013149,2]
[400649426,1767766238947,-210.84496672,0.00013149,2]
[400649427,1767766238960,-500.0,0.00013149,2]
[400649428,1767766238970,-500.0,0.00013149,2]
[400649429,1767766238980,-500.0,0.00013149,2]
[400649430,1767766238990,-500.0,0.00013149,2]
[400649431,1767766239001,-500.0,0.00013149,2]
[400649432,1767766239011,-500.0,0.00013149,2]
[400649433,1767766239021,-565.38226931,0.00013149,2]
[400649434,1767766239031,-988.57,0.0001315,2]
[400649435,1767766239040,-200.0,0.00013163,2]
[400649436,1767766239050,-200.0,0.00013166,2]
[400649437,1767766239060,-208.63138179,0.00013166,2]
[400649438,1767766239069,-828.0,0.00013166,2]
[400649439,1767766239079,-152.28064023,0.00013235,2]
[400649440,1767766239089,-500.0,0.00013271,2]
[400649441,1767766239099,-500.0,0.00013273,2]
[400649442,1767766239108,-500.0,0.00013273,2]
[400649443,1767766239118,-500.0,0.00013273,2]
[400649444,1767766239127,-500.0,0.00013273,2]
[400649445,1767766239136,-500.0,0.00013273,2]
[400649446,1767766239146,-500.0,0.00013273,2]
[400649447,1767766239155,-500.0,0.00013273,2]
[400649448,1767766239166,-500.0,0.00013273,2]
[400649449,1767766239175,-500.0,0.00013273,2]
[400649450,1767766239184,-500.0,0.00013273,2]
[400649451,1767766239193,-161.30460818,0.000133,2]
[400649452,1767766239203,-177.57781539,0.00013303,2]
[400649453,1767766239211,-828.0,0.00013303,2]
[400649454,1767766239221,-300.0,0.00013432,2]
[400649455,1767766239230,-300.0,0.00013432,2]
[400649456,1767766239239,-300.0,0.00013432,2]
[400649457,1767766239248,-300.0,0.00013432,2]
[400649458,1767766239257,-300.0,0.00013432,2]
[400649459,1767766239267,-300.0,0.00013432,2]
[400649460,1767766239276,-300.0,0.00013432,2]
[400649461,1767766239285,-300.0,0.00013432,2]
[400649462,1767766239294,-300.0,0.00013432,2]
[400649463,1767766239303,-300.0,0.00013432,2]
[400649464,1767766239312,-300.0,0.00013432,2]
[400649465,1767766239321,-300.0,0.00013432,2]
[400649466,1767766239330,-300.0,0.00013432,2]
[400649467,1767766239340,-300.0,0.00013432,2]
[400649468,1767766239349,-300.0,0.00013432,2]
[400649469,1767766239358,-600.0,0.00013432,2]
[400649470,1767766239367,-206.74458148,0.0001344,2]
[400649471,1767766239375,-152.11288876,0.0001344,2]
[400649472,1767766239384,-828.0,0.0001344,2]
[400649473,1767766239394,-500.0,0.00013545,2]
[400649474,1767766239403,-828.0,0.00013577,2]
[400649475,1767766239412,-603.1,0.00013599,2]
[400649476,1767766239421,-300.0,0.00013673,2]
[400649477,1767766239431,-500.0,0.00013698,2]
[400649478,1767766239440,-500.0,0.00013698,2]
[400649479,1767766239450,-500.0,0.00013698,2]
[400649480,1767766239459,-454.13713192,0.00013698,2]
[400649481,1767766239468,-1000.0,0.00013699,2]
[400649482,1767766239477,-150746.3833375,0.00013699,2]
[400649483,1767766239487,-1804.735681,0.00013699,2]
[400649484,1767766239496,-500.0,0.00013699,2]
[400649485,1767766239505,-500.0,0.00013699,2]
[400649486,1767766239514,-500.0,0.00013699,2]
[400649487,1767766239524,-500.0,0.00013699,2]
[400649488,1767766239533,-500.0,0.00013699,2]
[400649489,1767766239543,-500.0,0.00013699,2]
[400649490,1767766239552,-500.0,0.00013699,2]
[400649491,1767766239561,-500.0,0.00013699,2]
[400649492,1767766239571,-500.0,0.00013699,2]
[400649493,1767766239581,-500.0,0.00013699,2]
[400649494,1767766239590,-828.0,0.00013714,2]
[400649495,1767766239599,-379.50971857,0.00013819,2]
[400649496,1767766239609,-1000.0,0.00013821,2]
[400649497,1767766239618,-1000.0,0.00013821,2]
[400649498,1767766239627,-1000.0,0.00013821,2]
[400649499,1767766239636,-1000.0,0.00013821,2]
[400649500,1767766239645,-1000.0,0.00013821,2]
[400649501,1767766239654,-1000.0,0.00013821,2]
[400649502,1767766239664,-1000.0,0.00013821,2]
[400649503,1767766239672,-1000.0,0.00013821,2]
[400649504,1767766239682,-1000.0,0.00013821,2]
[400649505,1767766239691,-828.0,0.00013851,2]
[400649506,1767766239700,-11429.0,0.0001386,2]
[400649507,1767766239710,-151.0,0.000139,2]
[400649508,1767766239719,-828.0,0.00013988,2]
[400649509,1767766239728,-151.0,0.00014,2]
[400649510,1767766239737,-5000.0,0.00014,2]
[400649511,1767766239748,-151.0,0.000141,2]
[400649512,1767766239760,-828.0,0.00014125,2]
[400649513,1767766239770,-420.0,0.00014139,2]
[400649514,1767766239779,-234.9429885,0.00014175,2]
[400649515,1767766239789,-151.0,0.000142,2]
[400649516,1767766239798,-600.0,0.00014221,2]
[400649517,1767766239808,-312.4152694,0.00014247,2]
[400649518,1767766239827,-1000.0,0.00014247,2]
[400649519,1767766239836,-1000.0,0.00014247,2]
[400649520,1767766239846,-1000.0,0.00014247,2]
[400649521,1767766239855,-1000.0,0.00014247,2]
[400649522,1767766239865,-1000.0,0.00014247,2]
[400649523,1767766239874,-1000.0,0.00014247,2]
[400649524,1767766239883,-1000.0,0.00014247,2]
[400649525,1767766239894,-1000.0,0.00014247,2]
[400649526,1767766239905,-1000.0,0.00014247,2]
[400649527,1767766239914,-828.0,0.00014262,2]
[400649528,1767766239923,-151.0,0.000143,2]
[400649529,1767766239932,-370.49501307,0.00014325,2]
[400649530,1767766239942,-172.22882441,0.00014368,2]
[400649531,1767766239951,-1000.0,0.00014368,2]
[400649532,1767766239960,-1500.0,0.00014368,2]
[400649533,1767766239971,-1500.0,0.00014368,2]
[400649534,1767766239980,-1500.0,0.00014368,2]
[400649535,1767766239990,-1113.60271407,0.00014368,2]
[400649536,1767766239999,-1500.0,0.00014368,2]
[400649543,1767766240135,-1500.0,0.00014368,2]
[400649544,1767766240145,-828.0,0.00014399,2]
[400649545,1767766240154,-8045.68317559,0.00014436,2]
[400649546,1767766240164,-492310.582829,0.00014485,2]
[400649547,1767766240173,-828.0,0.00014536,2]
[400649548,1767766240182,-828.0,0.00014673,2]
[400649549,1767766240191,-256.2286162,0.00014749,2]
[400649550,1767766240202,-900.0,0.00014768,2]
[400649551,1767766240212,-720.0,0.00014775,2]
[400649552,1767766240221,-1002.70184396,0.00014795,2]
[400649553,1767766240231,-152.05252624,0.00014795,2]
[400649554,1767766240240,-1500.0,0.00014795,2]
[400649555,1767766240250,-1500.0,0.00014795,2]
[400649556,1767766240259,-1500.0,0.00014795,2]
[400649557,1767766240269,-1006.91111939,0.00014795,2]
[400649558,1767766240279,-1500.0,0.00014795,2]
[400649559,1767766240290,-1500.0,0.00014795,2]
[400649560,1767766240299,-828.0,0.0001481,2]
[400649561,1767766240310,-2000.0,0.00014916,2]
[400649562,1767766240320,-2000.0,0.00014916,2]
[400649563,1767766240331,-2000.0,0.00014916,2]
[400649564,1767766240342,-2000.0,0.00014916,2]
[400649565,1767766240351,-2000.0,0.00014916,2]
[400649566,1767766240360,-828.0,0.00014947,2]
[400649567,1767766240370,-1000.0,0.00015,2]
[400649568,1767766240380,-96492.33818534,0.00015028,2]
[400649569,1767766240389,-800.0,0.00015068,2]
[400649570,1767766240402,-828.0,0.00015084,2]
[400649571,1767766240414,-828.0,0.00015221,2]
[400649572,1767766240424,-1200.0,0.00015316,2]
[400649573,1767766240434,-1002.73058689,0.00015342,2]
[400649574,1767766240444,-2000.0,0.00015342,2]
[400649575,1767766240453,-636.08782837,0.00015342,2]
[400649576,1767766240463,-2000.0,0.00015342,2]
[400649577,1767766240473,-2000.0,0.00015342,2]
[400649578,1767766240483,-828.0,0.00015358,2]
[400649579,1767766240492,-500.0,0.00015464,2]
[400649580,1767766240502,-2500.0,0.00015464,2]
[400649581,1767766240512,-2500.0,0.00015464,2]
[400649582,1767766240522,-2500.0,0.00015464,2]
[400649583,1767766240532,-828.0,0.00015495,2]
[400649584,1767766240543,-587.0,0.00015507,2]
[400649585,1767766240553,-828.0,0.00015632,2]
[400649586,1767766240562,-535.2404745,0.00015758,3]
[400649587,1767766240572,-828.0,0.00015769,2]
[400649588,1767766240582,-303.39831266,0.00015864,2]
[400649589,1767766240592,-228.70076657,0.00015867,2]
[400649590,1767766240601,-2500.0,0.0001589,2]
[400649591,1767766240610,-2500.0,0.0001589,2]
[400649592,1767766240619,-2500.0,0.0001589,2]
[400649593,1767766240629,-828.0,0.00015906,2]
[400649594,1767766240638,-11429.0,0.00015939,2]
[400649595,1767766240648,-10000.0,0.00016,2]
[400649596,1767766240657,-2010.09110971,0.00016012,2]
[400649597,1767766240667,-3000.0,0.00016012,2]
[400649598,1767766240676,-850.0,0.00016043,2]
[400649599,1767766240685,-802.30074464,0.00016164,2]
[400649600,1767766240695,-864.0,0.00016252,2]
[400649601,1767766240704,-3000.0,0.00016438,2]
[400649602,1767766240713,-3000.0,0.00016438,2]
[400649603,1767766240722,-3000.0,0.00016438,2]
[400649604,1767766240731,-3500.0,0.0001656,2]
[400649605,1767766240741,-295.31433732,0.00016749,2]
[400649606,1767766240750,-250.0,0.00016846,2]
[400649607,1767766240760,-8045.68317556,0.00016985,2]
[400649608,1767766240769,-3500.0,0.00016986,2]
[400649609,1767766240778,-3500.0,0.00016986,2]
[400649610,1767766240787,-3500.0,0.00016986,2]
[400649611,1767766240797,-823.0,0.00017008,2]
[400649612,1767766240806,-4000.0,0.00017108,2]
[400649613,1767766240816,-722.36096407,0.0001719,6]
[400649614,1767766240824,-382.05613913,0.00017534,2]
[400649615,1767766240835,-2006.65794368,0.00017534,2]
[400649616,1767766240844,-2011.36258874,0.00017534,2]
[400649617,1767766240854,-4500.0,0.00017656,2]
[400649618,1767766240863,-1000.0,0.00017878,2]
[400649619,1767766240873,-47773.28772426,0.00018082,3]
[400649620,1767766240883,-5000.0,0.00018204,2]
[400649621,1767766240896,-15000.0,0.000185,2]
[400649622,1767766240905,-928.10025203,0.00018623,9]
[400649623,1767766240914,-1041.66666667,0.0001865,2]
[400649624,1767766240924,-160.0,0.0001865,2]